Cogmind - Beta 16 @@@ ROGUE MODE // 2025.11.19 @ 10:32:56 Player: ClassActJerk Result: Self-destructed Performance ------------- Evolutions (1) 500 Regions Visited (3) 600 Robots Destroyed (30) 150 Value Destroyed (729) 729 Prototype IDs (0) 0 Alien Tech Used (0) 0 Bonus (0) 0 TOTAL SCORE: 1979 Bonus ------- None Cogmind --------- Core Integrity 163/400 Matter 198/300 Energy 100/100 System Corruption 0% Temperature Cool (0) Movement Core (450) Ox8 Location -9/Mines Parts ------- > --- POWER (1) -------- (None) > --- PROPULSION (4) --- (None) > --- UTILITY (2) ------ Large Storage Unit Core Shielding > --- WEAPON (2) ------- Heavy Assault Rifle Heavy Assault Rifle > --- INVENTORY (15) --- Large Battery (200) Medium Matter Pod (100) Visual Processing Unit ECM Suite Light Armor Plating Heavy Assault Rifle Heavy Assault Rifle Improved Light Cannon Improved Light Cannon Peak State ------------ > --- POWER ------------ Improved Ion Engine > --- PROPULSION ------- Light Treads Light Treads Light Treads > --- UTILITY ---------- Large Storage Unit Core Shielding > --- WEAPON ----------- Light Assault Rifle Heavy Assault Rifle > --- INVENTORY -------- Improved Ion Engine Large Battery Medium Matter Pod Visual Processing Unit ECM Suite Light Armor Plating Heavy Assault Rifle Grenade Launcher [Rating: 11] Favorites ----------- Power Light Ion Engine Engine Light Ion Engine Propulsion Light Treads Treads Light Treads Wheel Wheel Utility Large Storage Unit Device Seismic Detector Storage Large Storage Unit Protection Core Shielding Weapon Light Assault Rifle Ballistic Gun Light Assault Rifle Launcher Grenade Launcher Build | -11 -10 -9 -9 ------- Run | Yrd Mat Mat Min Slots Evolved 2 | . . 2 . Power . | . . . . Propulsion 2 | . . 2 . Utility . | . . . . Weapon . | . . . . Parts Attached 28 | 7 5 15 1 Power 7 | 1 2 4 . Engine 7 | 1 2 4 . Core . | . . . . Reactor . | . . . . Propulsion 8 | 2 2 4 . Treads 6 | 2 . 4 . Leg . | . . . . Wheel 2 | . 2 . . Hover . | . . . . Flight . | . . . . Utility 4 | 2 1 1 . Device 1 | 1 . . . Storage 2 | 1 1 . . Processor . | . . . . Hackware . | . . . . Protection 1 | . . 1 . Artifact . | . . . . Weapon 9 | 2 . 6 1 Energy Gun . | . . . . Energy Cannon . | . . . . Ballistic Gun 8 | 2 . 5 1 Ballistic Cannon . | . . . . Launcher 1 | . . 1 . Special Weapon . | . . . . Impact Weapon . | . . . . Slashing Weapon . | . . . . Piercing Weapon . | . . . . Special Melee Weapon . | . . . . Unidentified Prototypes . | . . . . Parts Lost 12 | . 2 6 4 Power 3 | . 1 1 1 Propulsion 5 | . 1 2 2 Utility 1 | . . 1 . Weapon 3 | . . 2 1 Highest Loss Streak 4 | . 2 3 4 To Critical Strikes . | . . . . Average Backups 5 | 2 4 7 9 Power . | . . . . Propulsion . | . . . . Utility 3 | . 3 4 5 Weapon 1 | 1 1 2 4 Tool/Special . | . . . . Unused Backups 6 | 1 . . 5 Power . | . . . . Propulsion . | . . . . Utility 5 | . . . 5 Weapon 1 | 1 . . . Tool/Special . | . . . . Average Slot Usage (%) 80 | . 93 70 70 Engine 9 | . 11 8 9 Treads 17 | . 17 16 18 Wheel 5 | . 7 3 . Device 7 | . 14 1 . Storage 12 | . 14 11 11 Protection 5 | . . 9 11 Ballistic Gun 22 | . 28 17 12 Launcher 1 | . . 1 7 Peak Build Rating 11 | 7 7 11 10 Average Rating 6 | 4 6 7 9 On Entrance 6 | . 7 7 10 Avg Prop Armor Cover (%) . | . . . . Naked Turns . | . . . . Heaviest Build 34 | 11 28 34 34 Greatest Support 60 | 40 40 60 40 Greatest Overweight (x) 11 | 1 1 6 11 Average Overweight (x) . | . . . . Largest Inventory Capacity 15 | 8 15 15 15 Average Capacity 13 | 7 14 15 15 Most Carried 11 | 5 8 11 10 Average Carried 5 | 2 4 7 9 Final Capacity 15 | 8 15 15 15 Final Carried 10 | 2 7 10 9 Class Distribution -------------------- 74% | Mutant 25% | Scavenger-Mutant Dominant Class ---------------- Mutant | -10/Materials Mutant | -9/Materials Scavenger-Mutant | -9/Mines Resources | -11 -10 -9 -9 ----------- Run | Yrd Mat Mat Min Matter Collected 725 | 311 127 252 35 Remotely . | . . . . Salvage Created 1025 | 123 290 612 . Parts 74 | 8 23 43 . Haulers Intercepted . | . . . . Recyclers Shooed 1 | . 1 . . Parts Field Recycled . | . . . . Retrieved Matter . | . . . . Parts Self-Destructed . | . . . . Prevented . | . . . . Parts Restored . | . . . . Kills | -11 -10 -9 -9 ------- Run | Yrd Mat Mat Min Combat Hostiles Destroyed 20 | . 8 12 . Guns 19 | . 8 11 . AOE 1 | . . 1 . Classes Destroyed 8 | 3 3 2 . Worker 2 | 1 . 1 . Builder 1 | . . 1 . Tunneler 1 | 1 . . . Recycler 3 | 1 . 2 . Watcher 3 | . 2 1 . Swarmer 6 | . 3 3 . Grunt 10 | . 5 5 . Sentry 4 | . . 4 . Best Kill Streak 5 | 2 3 5 . Combat Bots Only 3 | . 2 3 . Max Kills in Single Turn 2 | 1 1 2 . Gunslinging . | . . . . Exploded 1 | . . 1 . Melee . | . . . . Uniques/NPCs Destroyed . | . . . . Combat | -11 -10 -9 -9 -------- Run | Yrd Mat Mat Min Hostile Shots Fired 167 | . 62 93 12 Missed 49 | . 24 25 . Hits 118 | . 38 68 12 Projectile 118 | . 38 68 12 AOE 15 | . . . 15 Critical Strikes 3 | . . 3 . Actively Blocked 1 | . . 1 . Damage Taken 1974 | . 546 910 518 Core 316 | . 79 127 110 Absorbed by Shields . | . . . . Redirected to Shielding 40 | . . 19 21 Core Remaining (%) 84 | 100 68 . . Volleys Fired 115 | 14 34 66 1 Largest 2 | 2 2 2 2 Hottest 53 | 40 40 53 53 Shots Fired 198 | 23 68 105 2 Gun 187 | 23 68 95 1 Cannon . | . . . . Launcher 11 | . . 10 1 Special . | . . . . Kinetic 187 | 23 68 95 1 Thermal . | . . . . Explosive 11 | . . 10 1 Electromagnetic . | . . . . Robot Hit Streak 15 | 10 7 15 . Robot Miss Streak 5 | 1 5 3 2 Penetration Max . | . . . . Secondary Targets 1 | . . 1 . Max Gunslinging Chain 1 | . . 1 . Shots Hit Robots 138 | 19 44 75 . Core Hits 62 | 5 20 37 . Critical Kills . | . . . . Critical Parts Destroyed . | . . . . Critical Strikes . | . . . . Melee Attacks . | . . . . Impact . | . . . . Slashing . | . . . . Piercing . | . . . . Sneak Attacks . | . . . . Combat Hostiles . | . . . . Follow-up Attacks . | . . . . Damage Inflicted 1691 | 155 542 994 . Guns 1134 | 155 375 604 . Cannons . | . . . . Explosions 557 | . 167 390 . Melee . | . . . . Ramming . | . . . . Kinetic 1134 | 155 375 604 . Thermal 167 | . 167 . . Explosive 390 | . . 390 . Electromagnetic . | . . . . Impact . | . . . . Slashing . | . . . . Piercing . | . . . . Highest Corruption . | . . . . Average Corruption . | . . . . Corruption Purged . | . . . . Corruption Blocked . | . . . . Overload Shots . | . . . . Overflow Damage 72 | . 72 . . Projectiles . | . . . . Explosions 72 | . 72 . . Melee . | . . . . Knockbacks . | . . . . Impact . | . . . . Kinetic . | . . . . Secondary . | . . . . Self-Inflicted Damage 184 | . 140 44 . Shots 5 | . 2 3 . Rammed . | . . . . Targets Rammed . | . . . . Kicked . | . . . . Crushed . | . . . . Highest Temperature 19 | . 18 19 . Average Temperature 5 | . 7 4 . Received Heat Transfer 522 | . 186 336 . Siege Activations . | . . . . Martial Activations . | . . . . Shielding Activations . | . . . . Robots Disrupted . | . . . . Combat Hostiles . | . . . . Robots Corrupted . | . . . . Combat Hostiles . | . . . . Parts Fried . | . . . . Impact Corruptions . | . . . . Robots Melted . | . . . . Combat Hostiles . | . . . . Parts Melted . | . . . . Heat Transferred 100 | . 100 . . Parts Sabotaged . | . . . . Parts Stolen . | . . . . Parts Stripped . | . . . . Power Chain Reactions . | . . . . Alert | -11 -10 -9 -9 ------- Run | Yrd Mat Mat Min Maximum Alert Level . | . . . . Low Security (%) 100 | 100 100 100 100 Level 1 . | . . . . Level 2 . | . . . . Level 3 . | . . . . Level 4 . | . . . . Level 5 . | . . . . High Security . | . . . . Max Security . | . . . . Peak Influence 164 | 10 164 100 25 Initial 42 | . . 42 25 Average 53 | . 78 48 14 Influence Increases 731 | 15 341 370 5 Destroy 0b10 Robot/C 400 | . 160 240 . Destroy 0b10 Robot/NC 50 | 15 10 25 . Destroy Leader 116 | . 44 72 . Disable Machine 45 | . 45 . . Destroy Structure 75 | . 37 33 5 Partial Spotted 15 | . 15 . . Lose Combat Pursuer 30 | . 30 . . Influence Decreases 731 | 15 238 408 70 Entered New Map 101 | . . 61 40 Time Decay 548 | 15 218 295 20 Lost Part 72 | . 20 52 . Lost Ally 10 | . . . 10 Squads Dispatched 3 | . 2 1 . Investigation . | . . . . Extermination . | . . . . Reinforcement 3 | . 2 1 . Assault . | . . . . Garrison . | . . . . Intercept . | . . . . Searches Triggered . | . . . . Construction Impeded 1 | . . 1 . Haulers Reinforced . | . . . . Active Scanning Responses . | . . . . Cargo Convoy Interrupts . | . . . . Stealth | -11 -10 -9 -9 --------- Run | Yrd Mat Mat Min Distress Signals 2 | . 2 . . Communications Jammed . | . . . . Distress Signals . | . . . . Times Spotted 33 | . 16 15 2 Peak Tracking Total 5 | . 5 4 2 Tactical Retreats 2 | . 2 . . Traps | -11 -10 -9 -9 ------- Run | Yrd Mat Mat Min Traps Triggered 3 | . . 3 . Indirectly . | . . . . Trap Hack Attempts . | . . . . Triggered . | . . . . Disarmed . | . . . . Reprogrammed . | . . . . Reused . | . . . . Traps Extracted . | . . . . Installed . | . . . . Triggered . | . . . . Machines | -11 -10 -9 -9 ---------- Run | Yrd Mat Mat Min Machines Disabled 3 | . 3 . . Max in Single Turn 3 | . 3 . . Machines Repaired . | . . . . Machines Dismantled . | . . . . Machines Sabotaged . | . . . . Overloaded Fab Kills . | . . . . Hacking | -11 -10 -9 -9 --------- Run | Yrd Mat Mat Min Machines Accessed . | . . . . Terminals . | . . . . Fabricators . | . . . . Repair Stations . | . . . . Recycling Units . | . . . . Scanalyzers . | . . . . Garrison Access . | . . . . Total Hacks . | . . . . Successful . | . . . . Failed . | . . . . Catastrophic . | . . . . Database Lockouts . | . . . . Manual . | . . . . Terminals . | . . . . Fabricators . | . . . . Repair Stations . | . . . . Recycling Units . | . . . . Scanalyzers . | . . . . Garrison Access . | . . . . Terminal Hacks . | . . . . Fabricator Hacks . | . . . . Repair Station Hacks . | . . . . Recycling Unit Hacks . | . . . . Scanalyzer . | . . . . Garrison Access Hacks . | . . . . Unauthorized Hacks . | . . . . Terminals . | . . . . Fabricators . | . . . . Repair Stations . | . . . . Recycling Units . | . . . . Scanalyzers . | . . . . Garrison Access . | . . . . Data Cores Recovered . | . . . . Used . | . . . . Hacking Detections . | . . . . Full Trace Events . | . . . . Feedback Events . | . . . . Feedback Blocked . | . . . . Robot Schematics Acquired . | . . . . Robots Built . | . . . . Authchips . | . . . . Time . | . . . . Total Robot Build Rating . | . . . . Part Schematics Acquired . | . . . . Parts Built . | . . . . Authchips . | . . . . Time . | . . . . Total Part Build Rating . | . . . . Part Studies Acquired . | . . . . Parts Repaired . | . . . . Time . | . . . . Parts Recycled . | . . . . Recycled Matter . | . . . . Retrieved Matter . | . . . . Retrieved Components . | . . . . Parts Scanalyzed . | . . . . Part Schematics Acquired . | . . . . Parts Damaged . | . . . . Bothacking | -11 -10 -9 -9 ------------ Run | Yrd Mat Mat Min Used RIF Installer . | . . . . Robots Hacked . | . . . . Non-combat . | . . . . Combat . | . . . . Robot Hacks Applied . | . . . . Relay Couplers Released . | . . . . Fabnet Peak Effective % . | . . . . Robots Rewired . | . . . . Allies Hacked . | . . . . Hacks Repelled . | . . . . Allies | -11 -10 -9 -9 -------- Run | Yrd Mat Mat Min Total Allies 3 | . . . 3 Largest Group 3 | . . . 3 Highest-Rated Group 40 | . . . 40 Highest-Rated Ally 16 | . . . 16 Total Orders . | . . . . Ally Attacks 3 | . . . 3 Total Damage 25 | . . . 25 Kills . | . . . . Allies Corrupted . | . . . . Allies Melted . | . . . . Intel | -11 -10 -9 -9 ------- Run | Yrd Mat Mat Min Active Infowar (turns) 705 | 3 614 88 . Seismic 705 | 3 614 88 . Robot Analysis Total . | . . . . Derelict Logs Recovered . | . . . . Drone Launches . | . . . . Drone Recoveries . | . . . . Exploration | -11 -10 -9 -9 ------------- Run | Yrd Mat Mat Min Turns Passed 1540 | 189 614 681 56 Spaces Moved 588 | 104 241 222 21 Core 29 | 23 . 4 2 Treads 456 | 81 187 169 19 Legs . | . . . . Wheels 103 | . 54 49 . Hover . | . . . . Flight . | . . . . Fastest Speed 50 | 50 95 95 160 Average Speed 159 | 136 162 164 194 Slowest Speed 600 | 160 240 350 600 Overloaded Moves . | . . . . Propulsion Burnouts . | . . . . Robots Hopped . | . . . . Potential Cave-ins . | . . . . Cave-ins Triggered . | . . . . Exploration Rate (%) 22 | 4 55 22 10 Regions Visited 3 Branch Regions 1 Pre-discovered Areas . | . . . . Known Exits Taken . | . . . . Unknown Exits Taken 3 | 1 1 1 . Scrap Searched 1 | . . . 1 Spaces Dug . | . . . . Terrain Destroyed 90 | . 48 37 5 Melee . | . . . . Projectile . | . . . . AOE 90 | . 48 37 5 Terrain Rammed . | . . . . Walls Destroyed . | . . . . Machines Disabled . | . . . . Actions | -11 -10 -9 -9 --------- Run | Yrd Mat Mat Min Total 1029 | 132 411 452 34 Wait 251 | . 119 121 11 Move 585 | 103 240 221 21 Hop . | . . . . Pick Up 38 | 7 10 21 . Fast Attach 3 | 3 . . . Attach 26 | 4 4 17 1 Detach . | . . . . Swap 2 | . 1 1 . Drop 9 | 1 3 5 . Fire 115 | 14 34 66 1 Melee . | . . . . Ram . | . . . . Kick . | . . . . Crush . | . . . . Escape Stasis . | . . . . Rewire . | . . . . Trap . | . . . . Miscellaneous . | . . . . Route ------- -11/Scrapyard -10/Materials -9/Materials -9/Mines History --------- Turn | Location | Event 7 | -11/Scrapyard | Discovered new exit (range 15) 190 | -11/Scrapyard | Entered Materials 304 | -10/Materials | Build established: Mutant 800 | -10/Materials | Discovered new exit (range 4) 804 | -10/Materials | Entered another Materials area 804 | -9/Materials | Evolved 2 slots: Propulsion x2 923 | -9/Materials | Lost 3 parts (1p1u1w) 1278 | -9/Materials | Build established: Scavenger-Mutant 1425 | -9/Materials | Discovered new exit (range 16) 1485 | -9/Materials | Entered Mines 1487 | -9/Mines | Assisted by bots powering up and referring to "LRC-V3" 1501 | -9/Mines | Assembled infested the area 1539 | -9/Mines | Core integrity fell below 50% 1541 | -9/Mines | Self-destructed Last Messages --------------- 01528_ Trooper 2b destroyed. 01528_ Grenade Launcher destroyed. 01530_ Lgt. Treads destroyed. 01532_ Imp. Ion Engine destroyed. 01533_ The unstable cave ceiling collapses. 01534_ HV Slug penetrates as-68937. 01534_ HV Slug penetrates Wall. 01535_ Wall collapses. 01535_ The unstable cave ceiling collapses. 01536_ HV Slug penetrates as-68937. 01536_ as-68937 suffers critical hit (Destroy). 01536_ as-68937 destroyed. 01538_ The unstable cave ceiling collapses. 01541_ U-05 Engineer builds a Wall. 01541_ HV Slug penetrates as-01135. 01541_ as-01135 suffers critical hit (Destroy). 01541_ HV Slug penetrates Wall. 01541_ HV Slug penetrates as-01135. 01541_ as-01135 suffers critical hit (Destroy). 01541_ HV Slug penetrates Wall. Map ----- +----------------------------------------------------+ | ???????????????????????????????????????????? | | ???????????????????????????????????????????? | | ???????????????????????????????????????????? | | ???????????????????????????????????????????? | | ???????????????????????????????????????????? | | ???????????????????????????????????????????? | | ???????????????????????????????????????????? | | ???????????????????????????????????????????? | | ???????????????????????????????????????????? | | ???????????????????????????????????????????? | | ???????????????????????????????????????????? | | ?????????????????????# ????????????????????? | | ?????????????????????# ????????????????????? | | ?????????????????????# ???????????????????? | | ?????????????????????# ???????????????????? | | ????????????????????? ???????????????????? | | ?????????????????????#% ???????????????????? | | ?????????????????????# ?????????????;?????? | | ???????????????????###u #?????????? %#?????? | | ??????????????????## # d ####????? %a#?????? | | ???????????? ?### d #####%%a???????? | | ??????????? %?????????? | | ???????????? u ???????????? | | ???????????????? # #????????????? | | ???????????????????# #????????????? | | ???????????????????## @ #????????????? | | ???????????????????# ##???????????? | | ???????????????????# #???????????? | | ???????????????????# #???????????? | | ???????????????????# ##???????????? | | ???????????????????## # #????????????? | | ????????????????????# ##????????????? | | ????????????????????### # ###?????????????? | | ??????????????????????# ###???????????????? | | ??????????????????????#/!#?????????????????? | | ??????????????????????# #?????????????????? | | ??????????????????????# /#?????????????????? | | ??????????????????????# #?????????????????? | | ?????????????????????## ##???#????????????? | | ??????????????????#### ## #????????????? | | ??????????????????# #????????????? | | ??????????????????# #????????????? | | ??????????????????# #???????????? | | ??????????????????### #?????????? | | ????????????????????## ## ###?????????? | | ?????????????????????#####?# ##???????????? | | ????????????????????????????###????????????? | | ???????????????????????????????????????????? | | ???????????????????????????????????????????? | | | +----------------------------------------------------+ Best States ------------- Heat Dissipation 28 Energy Generation 12 Energy Capacity 265 Matter Stores 300 Matter Capacity 300 Sight Range 16 Terrain Scan Density 10 Core Shielding 20 Evasion (%) 50 Recoil Reduction 3 Item Schematics ----------------- None Robot Schematics ------------------ None Fabricated ------------ Nothing Repaired ---------- Nothing Studied --------- None Alien Tech Used ----------------- None Achievements -------------- None Challenges ------------ None Game ------ Seed SuspensionGrenadeExpander Manual? 0 Play Time 00:12:25 Cumulative 31.7 hours Start 2025.11.19 @ 10:21:24 End 2025.11.19 @ 10:32:56 Sessions 1 Manual Loads 0 Difficulty Rogue Special Mode None Game No. 96 Rogue 96 Adventurer 0 Explorer 0 Win Type - Total 0 Types 0/0/0/0/0/0/0/0/0/0 Lore% 7 Gallery% 24 Achievement% 18 Wizard Run 0 Options --------- Layout 1 ASCII 0 Keyboard 0 Movement Mouse Keybinds 0 Fullscreen 1 Font 24/Terminus Map View 50x35 Zoom Use 0% Tactical HUD 1 Map Filters NONE Filters NONE Steam 1 RUN: 17793c45-1f30-4746-9f2a-d4381027b33c